bitfinex-derivatives/quotes_ETHF0:USTF0_20250928
["timestamp","ask_amount","ask_price","bid_price","bid_amount"]
[1759033403700,1.73891727,3999.4,3999.3,0.98963606]
[1759033404302,1.28910727,3999.4,3999.3,0.98963606]
[1759033404599,0.73470727,3999.4,3999.3,1.19503606]
[1759033405192,1.04560727,3999.4,3999.3,1.19503606]
[1759033405502,1.25570727,3999.4,3999.3,1.19503606]
[1759033429926,0.52660727,3999.4,3999.3,1.44603606]
[1759033430236,3.2078,4000.0,3999.9,1.19665]
[1759033430532,3.4351,4000.0,3999.9,1.19665]
[1759033433641,3.2078,4000.0,3999.9,1.19665]
[1759033439850,3.4179,4000.0,3999.9,1.19665]
[1759033442054,3.9414733,4000.0,3999.9,1.19665]
[1759033443354,4.2702733,4000.0,3999.9,1.19665]
[1759033444754,4.2702733,4000.0,3999.9,0.7469]
[1759033446154,4.4970733,4000.0,3999.9,0.7469]
[1759033448955,4.1682733,4000.0,3999.9,1.19665]
[1759033449165,0.0018642,4000.2,4000.1,1.21813]
[1759033449457,0.2119642,4000.2,4000.1,2.60707924]
[1759033449649,0.2119642,4000.2,4000.1,2.15734924]
[1759033451558,0.0018642,4000.2,4000.1,2.15734924]
[1759033454862,0.6751842,4000.2,4000.1,2.15734924]
[1759033455052,1.0127842,4000.2,4000.1,2.15734924]
[1759033455453,0.5630642,4000.2,4000.1,2.15734924]
[1759033456159,0.5630642,4000.2,4000.1,2.60707924]
[1759033458064,0.5630642,4000.2,3999.9,0.5368]
[1759033458065,0.88774,4000.0,3999.9,0.5368]
[1759033458367,1.22534,4000.0,3999.9,1.23755]
[1759033459466,0.7756,4000.0,3999.9,1.23755]
[1759033459658,0.7756,4000.0,3999.9,6.52555]
[1759033459856,0.7756,4000.0,3999.9,6.0758]
[1759033460772,0.7756,4000.0,3999.9,6.2954]
[1759033463170,1.22534,4000.0,3999.9,6.2954]
[1759033463678,0.7756,4000.0,3999.9,6.2954]
[1759033463879,0.438,4000.0,3999.9,6.2954]
[1759033464376,0.2236,4000.0,3999.9,1.0074]
[1759033465676,0.88034,4000.0,3999.9,0.7564]
[1759033465866,0.44974,4000.1,4000.0,0.8813]
[1759033466180,0.44974,4000.1,4000.0,2.26924924]
[1759033472684,0.44974,4000.1,4000.0,1.1313]
[1759033475384,0.44974,4000.1,4000.0,2.47953235]
[1759033476888,0.44974,4000.1,4000.0,2.92927235]
[1759033477283,0.4515842,4000.2,4000.1,1.20293]
[1759033477476,0.4515842,4000.2,4000.1,5.8279952]
[1759033478186,0.4515842,4000.2,4000.1,7.17622755]
[1759033478987,0.4515842,4000.2,4000.1,5.8279952]
[1759033480188,0.4515842,4000.2,4000.1,7.1768186]
[1759033480390,0.4515842,4000.2,4000.1,12.0150886]
[1759033483991,0.0018642,4000.2,4000.1,12.4648186]
[1759033484290,0.4515842,4000.2,4000.1,12.4648186]
[1759033484792,0.4515842,4000.2,4000.1,12.0150886]
[1759033486589,0.4515842,4000.2,4000.1,12.4648186]
[1759033489497,0.4515842,4000.2,4000.1,12.0150886]
[1759033492296,0.4515842,4000.2,4000.1,5.3782652]
[1759033496903,0.4515842,4000.2,4000.1,5.8279952]
[1759033500004,0.4515842,4000.2,4000.1,5.3782652]
[1759033500303,0.4515842,4000.2,4000.1,6.72751203]
[1759033502399,0.4515842,4000.2,4000.1,7.17724203]
[1759033505201,0.4515842,4000.2,4000.1,5.8279952]
[1759033505506,0.65914,4000.9,4000.8,0.7553]
[1759033505709,1.17882042,4000.9,4000.8,1.0053]
[1759033506208,0.65914,4000.9,4000.8,2.35344011]
[1759033506508,0.66153107,4000.9,4000.8,2.35344011]
[1759033507407,0.66153107,4000.9,4000.8,1.0053]
[1759033510012,0.99483107,4000.9,4000.8,1.0053]
[1759033510604,1.21153107,4000.9,4000.8,1.0053]
[1759033510805,0.44966,4000.7,4000.6,3.5269]
[1759033511005,1.22436,4000.7,4000.6,3.7769]
[1759033513016,1.22436,4000.7,4000.6,4.0038]
[1759033513719,1.22436,4000.7,4000.6,3.4578]
[1759033513907,1.22436,4000.7,4000.6,4.0038]
[1759033514617,1.22436,4000.7,4000.6,4.2131]
[1759033515219,0.67436,4000.7,4000.6,4.2131]
[1759033515512,0.44965,4000.8,4000.7,0.546]
[1759033515718,0.44965,4000.8,4000.7,0.7553]
[1759033515914,0.00239107,4000.9,4000.8,1.20495]
[1759033515915,0.45203107,4000.9,4000.8,1.20495]
[1759033516114,0.00239107,4000.9,4000.8,1.45495]
[1759033518318,0.22709107,4000.9,4000.8,1.0053]
[1759033518518,0.56039107,4000.9,4000.8,1.0053]
[1759033521813,1.01003107,4000.9,4000.8,1.0053]
[1759033523029,0.67673107,4000.9,4000.8,1.0053]
[1759033523231,0.67673107,4000.9,4000.8,1.45495]
[1759033523826,0.67673107,4000.9,4000.8,1.0053]
[1759033524529,0.44966,4000.7,4000.6,3.2078]
[1759033524825,1.19036,4000.7,4000.6,3.8727]
[1759033525228,1.19036,4000.7,4000.6,4.1948]
[1759033526833,1.19036,4000.7,4000.6,4.64447]
[1759033531632,0.86866,4000.7,4000.6,4.64447]
[1759033532441,0.65716,4000.7,4000.6,4.64447]
[1759033534242,0.65716,4000.7,4000.6,5.99261011]
[1759033534440,0.65716,4000.7,4000.6,5.54294011]
[1759033534644,1.19036,4000.7,4000.6,0.987]
[1759033538345,1.70973804,4000.7,4000.6,0.987]
[1759033539147,1.70973804,4000.7,4000.6,0.7812]
[1759033540448,1.70973804,4000.7,4000.6,0.987]
[1759033544352,1.70973804,4000.7,4000.6,1.43667]
[1759033545446,1.19036,4000.7,4000.6,1.43667]
[1759033548653,0.7407,4000.7,4000.6,1.43667]
[1759033548851,0.7407,4000.7,4000.6,2.57384878]
[1759033549248,1.19036,4000.7,4000.6,1.43667]
[1759033549452,1.19036,4000.7,4000.6,0.987]
[1759033550052,1.19036,4000.7,4000.6,0.7812]
[1759033551152,1.19036,4000.7,4000.6,1.23087]
[1759033551749,0.7407,4000.7,4000.6,1.43667]
[1759033553256,0.7407,4000.7,4000.6,2.78481011]
[1759033554053,1.19036,4000.7,4000.6,2.12934011]
[1759033554357,1.19036,4000.7,4000.4,0.5682]
[1759033554358,1.32158,4000.5,4000.4,0.5682]
[1759033554558,1.84122546,4000.5,4000.4,0.25]
[1759033555852,1.84122546,4000.5,4000.4,0.5682]
[1759033556654,1.84122546,4000.5,4000.4,0.25]
[1759033560553,2.97840424,4000.5,4000.4,0.25]
[1759033561053,0.44973,4000.1,3999.9,0.3182]
[1759033561258,0.7358,4000.0,3999.9,0.3182]
[1759033561464,0.4271,4000.0,3999.9,0.795]
[1759033561653,0.7358,4000.0,3999.9,0.795]
[1759033562163,0.7358,4000.0,3999.9,1.24475]
[1759033562357,0.96581,4000.3,4000.2,0.2268]
[1759033562564,1.03504189,4000.3,4000.2,1.20792]
[1759033562755,0.72634189,4000.3,4000.2,1.20792]
[1759033563963,1.17605189,4000.3,4000.2,1.20792]
[1759033564263,1.48475189,4000.3,4000.2,1.20792]
[1759033567370,1.70445189,4000.3,4000.2,0.7582]
[1759033567560,1.70445189,4000.3,4000.2,0.3182]
[1759033568065,1.70445189,4000.3,4000.2,0.545]
[1759033568252,1.70445189,4000.3,4000.2,0.7582]
[1759033568458,1.70445189,4000.3,4000.2,1.20792]
[1759033568966,1.70445189,4000.3,4000.2,0.7582]
[1759033572666,1.70445189,4000.3,4000.2,0.545]
[1759033572862,1.70445189,4000.3,4000.2,0.3182]
[1759033573168,1.70445189,4000.3,4000.2,0.5395]
[1759033574169,1.20754,4000.0,3999.9,0.5501]
[1759033574373,1.72602846,4000.0,3999.9,0.5501]
[1759033575264,1.72602846,4000.0,3999.9,0.773]
[1759033579277,1.72602846,4000.0,3999.9,0.5501]
[1759033580076,1.72602846,4000.0,3999.9,0.773]
[1759033584579,1.27628846,4000.0,3999.9,0.773]
[1759033584779,1.72602846,4000.0,3999.9,0.773]
[1759033587579,1.72634861,4000.0,3999.9,0.773]
[1759033603284,1.20754,4000.0,3999.9,0.773]
[1759033603490,1.72707204,4000.0,3999.9,0.773]
[1759033627403,0.96927204,4000.0,3999.9,0.773]
[1759033627603,3.2078,4000.5,4000.0,0.1314]
[1759033627911,0.44973,4000.1,4000.0,1.9865211]
[1759033628113,0.44973,4000.1,4000.0,3.33529521]
[1759033628319,0.44972,4000.2,4000.0,3.33529521]
[1759033628604,0.44972,4000.2,4000.1,0.7696]
[1759033630706,0.44972,4000.2,4000.1,1.0196]
[1759033635718,0.5556,4000.6,4000.5,0.5487]
[1759033636017,1.52293242,4000.6,4000.5,1.1098]
[1759033636313,0.45203107,4000.9,4000.8,0.4209]
[1759033636507,0.96967917,4000.9,4000.8,0.982]
[1759033636705,0.67213107,4000.9,4000.8,0.982]
[1759033638019,0.00239107,4000.9,4000.8,0.982]
[1759033641517,0.22249107,4000.9,4000.8,0.982]
[1759033644019,0.67213107,4000.9,4000.8,1.43165]
[1759033651323,0.22249107,4000.9,4000.8,1.43165]
[1759033651619,0.67213107,4000.9,4000.8,1.43165]
[1759033652421,0.45203107,4000.9,4000.8,1.43165]
[1759033654617,0.45203107,4000.9,4000.8,2.56851611]
[1759033655612,0.00239107,4000.9,4000.8,2.56851611]
[1759033656915,0.20979107,4000.9,4000.8,2.56851611]
[1759033661016,0.20979107,4000.9,4000.8,2.11886611]
[1759033661612,0.76889107,4000.9,4000.8,0.3111]
[1759033661826,0.76889107,4000.9,4000.8,0.5611]
[1759033662322,0.76889107,4000.9,4000.8,0.7791]
[1759033662921,0.76889107,4000.9,4000.8,0.9882]
[1759033664126,1.28697918,4000.9,4000.8,0.9882]
[1759033664823,1.28697918,4000.9,4000.8,0.7791]
[1759033665417,0.7665,4000.6,4000.5,5.62]
[1759033665621,1.73444867,4000.6,4000.5,5.538]
[1759033666126,1.73444867,4000.6,4000.5,6.4255]
[1759033667522,1.73444867,4000.6,4000.5,1.1375]
[1759033669522,1.73444867,4000.6,4000.5,1.0091]
[1759033670031,1.73444867,4000.6,4000.5,1.1375]
[1759033670231,1.21617,4000.6,4000.5,1.1375]
[1759033670727,0.00239107,4000.9,4000.5,1.58718]
[1759033671027,0.96770867,4000.8,4000.7,1.89596611]
[1759033671228,0.96770867,4000.8,4000.7,2.14596611]
[1759033671429,0.44965,4000.8,4000.7,2.14596611]
[1759033672230,1.51395561,4000.8,4000.7,1.0091]
[1759033672432,1.73415561,4000.8,4000.7,1.0091]
[1759033674126,0.65705,4000.8,4000.7,1.0091]
[1759033675125,0.00239107,4000.9,4000.8,1.17925]
[1759033679530,0.45203107,4000.9,4000.8,1.17925]
[1759033679726,0.00239107,4000.9,4000.8,1.17925]
[1759033683036,0.21339107,4000.9,4000.8,1.17925]
[1759033683337,0.00239107,4000.9,4000.8,1.17925]
[1759033684041,0.21339107,4000.9,4000.8,1.17925]
[1759033685137,0.00239107,4000.9,4000.8,1.17925]
[1759033686138,0.45203107,4000.9,4000.8,1.17925]
[1759033686737,0.66303107,4000.9,4000.8,0.7296]
[1759033686930,1.73424582,4000.9,4000.8,0.7296]
[1759033689039,1.73424582,4000.9,4000.8,1.17925]
[1759033689234,1.40264582,4000.9,4000.8,1.17925]
[1759033689742,1.40264582,4000.9,4000.8,0.7296]
[1759033690638,1.73684582,4000.9,4000.8,0.7296]
[1759033693437,1.73684582,4000.9,4000.8,0.5223]
[1759033695343,0.87795,4000.8,4000.7,0.25]
[1759033695543,1.73026475,4000.8,4000.7,0.5609]
[1759033698546,1.73026475,4000.8,4000.7,0.25]
[1759033698742,2.86713086,4000.8,4000.7,0.25]
[1759033701048,2.86713086,4000.8,4000.7,0.7766]
[1759033701249,1.73026475,4000.8,4000.7,0.9906]
[1759033707657,1.17756475,4000.8,4000.7,0.9906]
[1759033707957,1.49846475,4000.8,4000.7,0.9906]
[1759033708158,1.71196475,4000.8,4000.7,0.9906]
[1759033709956,1.71196475,4000.8,4000.7,0.25]
[1759033709957,2.84883086,4000.8,4000.7,0.25]
[1759033712069,2.84883086,4000.8,4000.7,0.58]
[1759033712670,2.84883086,4000.8,4000.7,0.33]
[1759033713165,0.2066,4000.5,4000.4,0.2241]
[1759033713468,0.741,4000.5,4000.4,0.2241]
[1759033713661,1.25928066,4000.5,4000.4,0.2241]
[1759033713862,1.25928066,4000.5,4000.4,0.5541]
[1759033714267,1.70897066,4000.5,4000.4,0.5541]
[1759033715172,1.70897066,4000.5,4000.4,0.7723]
[1759033716572,1.70897066,4000.5,4000.4,1.22199]
[1759033719480,1.70897066,4000.5,4000.4,0.7723]
[1759033723273,1.70897066,4000.5,4000.4,1.222]
[1759033724483,1.70897066,4000.5,4000.4,0.7723]
[1759033725678,1.70897066,4000.5,4000.4,0.5541]
[1759033725986,0.741,4000.3,4000.2,5.33629411]
[1759033726180,0.741,4000.3,4000.2,5.81039411]
[1759033728486,0.741,4000.3,4000.2,6.02859411]
[1759033729083,0.4201,4000.3,4000.2,6.02859411]
[1759033731385,0.2066,4000.3,4000.2,6.02859411]
[1759033732181,0.741,4000.3,4000.2,6.02859411]
[1759033732387,1.19071,4000.3,4000.2,6.02859411]
[1759033732788,0.741,4000.3,4000.2,6.02859411]
[1759033735190,0.741,4000.3,4000.2,2.82079411]
[1759033737593,1.19071,4000.3,4000.2,2.82079411]
[1759033737783,1.709331,4000.3,4000.2,1.47202]
[1759033738196,1.709331,4000.3,4000.2,1.22202]
[1759033738396,1.709331,4000.3,4000.2,1.47202]
[1759033746092,1.709331,4000.3,4000.2,1.0223]
[1759033746894,1.709331,4000.3,4000.2,0.33]
[1759033747495,1.709331,4000.3,4000.2,0.5389]
[1759033747694,1.709331,4000.3,4000.2,0.7516]
[1759033749994,1.709331,4000.3,4000.2,0.5389]
[1759033750189,0.436,3999.9,3999.6,1.34877411]
[1759033750495,1.2167,3999.5,3999.4,0.5367]
[1759033751095,1.2167,3999.5,3999.4,0.7489]
[1759033761006,1.2167,3999.5,3999.4,0.5367]
[1759033762709,1.3468,3999.5,3999.3,0.25311606]
[1759033762913,1.0159,3999.5,3999.3,0.57761606]
[1759033763113,0.7669,3999.4,3999.3,0.57761606]
[1759033763412,0.7669,3999.4,3999.3,0.78981606]
[1759033768313,1.28558913,3999.4,3999.3,0.78981606]
[1759033768704,1.28558913,3999.4,3999.3,0.00311606]
[1759033770113,6.28558913,3999.4,3999.3,0.00311606]
[1759033776607,7.42390706,3999.4,3999.3,0.00311606]
[1759033779419,2.42390706,3999.4,3999.3,0.00311606]
[1759033781115,2.87371706,3999.4,3999.3,0.00311606]
[1759033823952,3.12371706,3999.4,3999.3,0.00311606]
[1759033825050,2.33285793,3999.1,3999.0,0.2271]
[1759033825250,0.6585,3998.6,3998.5,1.07363]
[1759033825450,1.49578913,3998.6,3998.5,1.07363]
[1759033825843,1.49578913,3998.6,3998.5,1.07660252]
[1759033826949,1.49578913,3998.6,3998.5,1.40500252]
[1759033827152,1.04588913,3998.6,3998.5,1.40500252]
[1759033827355,1.04588913,3998.6,3998.5,1.85491252]
[1759033827554,1.04588913,3998.6,3998.5,1.40500252]
[1759033827555,1.49578913,3998.6,3998.5,1.40500252]
[1759033828956,1.49578913,3998.6,3998.5,1.26980252]
[1759033835356,1.71328913,3998.6,3998.5,1.26980252]
[1759033837656,1.71328913,3998.6,3998.5,1.71971252]
[1759033838257,1.71328913,3998.6,3998.5,1.26980252]
[1759033857663,1.1946,3998.6,3998.5,1.26980252]
[1759033857963,1.71530463,3998.6,3998.5,1.26980252]
[1759033859573,1.71530463,3998.6,3998.5,1.51980252]
[1759033867970,1.71530463,3998.6,3998.5,1.26980252]
[1759033868171,1.71530463,3998.6,3998.5,1.51980252]
[1759033870580,1.28920463,3998.6,3998.5,1.51980252]
[1759033870975,1.50400463,3998.6,3998.5,1.51980252]
[1759033872582,3.14672139,3998.6,3998.5,1.51980252]
[1759033875077,3.14672139,3998.6,3998.5,1.19140252]
[1759033879292,3.14672139,3998.6,3998.5,0.96600252]
[1759033883383,3.14672139,3998.6,3998.5,0.71600252]
[1759033883584,3.14672139,3998.6,3998.5,0.96600252]
[1759033883781,3.14672139,3998.6,3998.5,0.71600252]
[1759033883982,3.14672139,3998.6,3998.5,0.49610252]
[1759033896599,2.86675823,3998.6,3998.5,0.49610252]
[1759033907302,1.72810463,3998.6,3998.5,0.49610252]
[1759033908810,1.72810463,3998.6,3998.5,1.23140252]
[1759033909108,3.2078,3999.2,3999.1,0.7353]
[1759033909311,0.4498,3999.5,3999.2,0.3176]
[1759033909505,0.3123,3999.6,3999.2,0.3176]
[1759033909506,0.44981,3999.4,3999.2,0.3176]
[1759033909712,0.76211,3999.4,3999.3,0.7353]
[1759033909912,1.9007636,3999.4,3999.3,0.7353]
[1759033910413,2.1121636,3999.4,3999.3,0.7353]
[1759033911015,2.3186636,3999.4,3999.3,0.7353]
[1759033911410,1.18001,3999.4,3999.3,0.7353]
[1759033911716,2.3186636,3999.4,3999.3,0.7353]
[1759033915131,2.3186636,3999.4,3999.3,0.4177]
[1759033916522,2.3186636,3999.4,3999.3,0.7551]
[1759033922424,2.3186636,3999.4,3999.3,0.4177]
[1759033926229,2.3186636,3999.4,3999.3,0.7551]
[1759033933230,2.3186636,3999.4,3999.3,0.4177]
[1759033936230,2.83723963,3999.4,3999.3,0.4177]
[1759033939732,0.51857603,3999.4,3999.3,1.18762]
[1759033939931,3.2078,3999.7,3999.6,0.88418]
[1759033939932,0.329,3999.7,3999.6,0.88418]
[1759033940138,0.99405,3999.9,3999.8,0.7545]
[1759033940331,1.51350183,3999.9,3999.8,0.7545]
[1759033940526,1.71970183,3999.9,3999.8,0.7545]
[1759033943232,1.20025,3999.9,3999.8,0.7545]
[1759033949433,1.20025,3999.9,3999.8,1.20426]
[1759033958950,0.7505,3999.9,3999.8,1.20426]
[1759033959153,0.66408,4000.6,4000.5,0.9234]
[1759033959446,1.39208715,4000.6,4000.5,0.9234]
[1759033962546,0.87348,4000.6,4000.5,0.9234]
[1759033964054,0.65908,4000.6,4000.5,0.9234]
[1759033964245,0.44968,4000.6,4000.5,0.9234]
[1759033964748,0.65908,4000.6,4000.5,0.9234]
[1759033964953,0.2094,4000.6,4000.5,0.9234]
[1759033965154,3.2078,4000.7,4000.5,0.9234]
[1759033965155,3.65746,4000.7,4000.5,1.37308]
[1759033965356,3.65746,4000.7,4000.6,0.7876]
[1759033965554,3.86686,4000.7,4000.6,0.7876]
[1759033966649,4.08126,4000.7,4000.6,0.7876]
[1759033967557,4.39236,4000.7,4000.6,0.7876]
[1759033967745,4.39236,4000.7,4000.6,1.23727]
[1759033968160,3.9427,4000.7,4000.6,1.23727]
[1759033968457,3.6316,4000.7,4000.6,1.23727]
[1759033968758,4.39236,4000.7,4000.6,1.23727]
[1759033969058,4.08126,4000.7,4000.6,1.23727]
[1759033969257,4.39236,4000.7,4000.6,1.23727]
[1759033969861,3.9427,4000.7,4000.6,1.23727]
[1759033970658,3.6316,4000.7,4000.6,1.23727]
[1759033971855,3.9427,4000.7,4000.6,1.23727]
[1759033973258,3.6316,4000.7,4000.6,1.23727]
[1759033975546,3.9426,4000.7,4000.6,1.23727]
[1759033976758,4.39226,4000.7,4000.6,1.23727]
[1759033977864,3.9426,4000.7,4000.6,1.23727]
[1759033978859,4.39226,4000.7,4000.6,1.23727]
[1759033979362,4.39226,4000.7,4000.6,1.48727]
[1759033980463,3.9426,4000.7,4000.6,1.48727]
[1759033985665,0.7348,4000.7,4000.6,1.48727]
[1759033987669,0.00239107,4000.9,4000.6,2.45510751]
[1759033987854,0.00239107,4000.9,4000.8,1.20805]
[1759033989360,0.00239107,4000.9,4000.8,2.55774699]
[1759033989560,0.00239107,4000.9,4000.8,1.20805]
[1759033990164,0.00239107,4000.9,4000.8,2.55545997]
[1759033991560,0.00239107,4000.9,4000.8,1.20805]
[1759033993564,0.00239107,4000.9,4000.8,4.41585]
[1759033994364,0.00239107,4000.9,4000.8,4.66585]
[1759034007376,0.311,4001.6,4001.5,0.44957]
[1759034007686,1.27047086,4001.6,4001.5,1.24297]
[1759034008269,1.72003086,4001.6,4001.5,1.24297]
[1759034008470,1.72266212,4001.6,4001.5,1.2459693]
[1759034012382,0.96210212,4001.6,4001.5,1.5826693]
[1759034012581,0.52140212,4001.6,4001.5,1.7810456]
[1759034012887,0.00263126,4001.6,4001.5,3.00017681]
[1759034013380,0.76039,4002.2,4001.5,3.00017681]
[1759034013381,3.2078,4002.2,4002.1,1.203]
[1759034013586,3.2078,4002.2,4002.1,2.87050751]
[1759034014083,3.2078,4002.7,4002.6,1.20295]
[1759034014273,0.74211527,4002.7,4002.6,1.45295]
[1759034014478,0.22368671,4002.7,4002.6,1.45295]
[1759034016681,0.00248671,4002.7,4002.6,1.45295]
[1759034017588,0.00248671,4002.7,4002.6,1.0035]
[1759034017884,0.22368671,4002.7,4002.6,1.0035]
[1759034020788,0.44318671,4002.7,4002.6,1.0035]
[1759034020979,0.22368671,4002.7,4002.6,1.0035]
[1759034021478,0.00248671,4002.7,4002.6,1.0035]
[1759034022382,0.75408671,4002.7,4002.6,0.3199]
[1759034022587,0.75408671,4002.7,4002.6,0.7934]
[1759034022887,0.44318671,4002.7,4002.6,1.0035]
[1759034023480,0.22368671,4002.7,4002.6,1.0035]
[1759034025989,0.00248671,4002.7,4002.6,1.0035]
[1759034026486,0.45191671,4002.7,4002.6,1.0035]
[1759034027088,0.67311671,4002.7,4002.6,1.0035]
[1759034027685,0.45191671,4002.7,4002.6,1.0035]
[1759034028491,0.45191671,4002.7,4002.6,1.45295]
[1759034029592,0.00248671,4002.7,4002.6,1.45295]
[1759034029992,0.45191671,4002.7,4002.6,1.45295]
[1759034030685,0.00248671,4002.7,4002.6,1.45295]
[1759034035086,0.00248671,4002.7,4002.6,4.66075]
[1759034038091,3.2078,4003.7,4003.1,1.21119]
[1759034038292,1.19203706,4003.6,4003.5,0.8938]
[1759034039198,1.19508597,4003.6,4003.5,0.8938]
[1759034039597,0.67737891,4003.6,4003.5,0.8938]
[1759034040791,0.88277891,4003.6,4003.5,0.8938]
[1759034041293,1.19554037,4003.6,4003.5,0.8938]
[1759034042303,0.00304891,4003.6,4003.5,0.8938]
[1759034042989,0.22804891,4003.6,4003.5,1.1438]
[1759034043189,0.44928,4004.1,4003.5,0.8164]
[1759034043391,0.87965,4004.3,4004.2,0.7618]
[1759034043592,1.19239075,4004.3,4004.2,1.0118]
[1759034044201,1.19528442,4004.3,4004.2,1.0118]
[1759034044403,0.74603442,4004.3,4004.2,1.0118]
[1759034044793,0.22789367,4004.3,4004.2,1.0118]
[1759034046595,0.00289367,4004.3,4004.2,1.0118]
[1759034056604,0.00289367,4004.3,4004.2,0.7618]
[1759034056814,0.74309367,4004.3,4004.2,0.3274]
[1759034057115,0.65603,4003.6,4003.5,0.5657]
[1759034057306,0.65603,4003.6,4003.5,0.8157]
[1759034057610,0.65603,4003.6,4003.5,1.1372]
[1759034060112,0.65603,4003.6,4003.5,0.8872]
[1759034060304,0.65603,4003.6,4003.5,1.1372]
[1759034061601,0.65603,4003.6,4003.5,0.8872]
[1759034061803,0.65603,4003.6,4003.5,1.1372]
[1759034063419,0.65603,4003.6,4003.5,1.58654]
[1759034063818,0.65603,4003.6,4003.5,1.33654]
[1759034064017,0.65603,4003.6,4003.5,1.58654]
[1759034064822,0.65603,4003.6,4003.5,1.1372]
[1759034067027,1.18813,4003.6,4003.5,0.5715]
[1759034067526,1.18813,4003.6,4003.5,0.7915]
[1759034067722,1.18813,4003.6,4003.5,0.9215]
[1759034068523,1.18813,4003.6,4003.5,1.1464]
[1759034080230,1.18813,4003.6,4003.5,0.3215]
[1759034080436,1.19078,4003.2,4003.1,0.8056]
[1759034080632,1.70837609,4003.2,4003.1,0.8056]
[1759034081034,1.70837609,4003.2,4003.1,1.0305]
[1759034084532,1.39777609,4003.2,4003.1,1.0305]
[1759034084727,0.94839609,4003.2,4003.1,1.0305]
[1759034084939,0.51759609,4003.2,4003.1,1.0305]
[1759034085242,0.96696609,4003.3,4003.1,1.0305]
[1759034085538,0.51759609,4003.2,4003.1,1.0305]
[1759034086439,0.96697609,4003.2,4003.1,1.0305]
[1759034087639,0.96697609,4003.2,4003.1,1.47989]
[1759034089941,0.51759609,4003.2,4003.1,1.47989]
[1759034090141,0.44937,4003.4,4003.3,0.89427]
[1759034090342,0.44937,4003.4,4003.3,1.22987]
[1759034090547,1.1763559,4003.4,4003.3,1.22987]
[1759034091439,1.1763559,4003.4,4003.3,0.7805]
[1759034091640,1.3978559,4003.4,4003.3,0.7805]
[1759034092347,1.7084559,4003.4,4003.3,0.7805]
[1759034093548,1.7084559,4003.4,4003.3,0.3356]
[1759034096647,1.7084559,4003.4,4003.3,0.5466]
[1759034101854,1.7084559,4003.4,4003.3,0.99597]
[1759034104153,1.3978559,4003.4,4003.3,1.21567]
[1759034104356,1.1763559,4003.4,4003.3,1.21567]
[1759034105653,0.5176859,4003.4,4003.3,2.63111714]
[1759034105852,3.2078,4003.6,4003.5,1.32034]
[1759034106158,3.72588251,4003.6,4003.5,1.32034]
[1759034107556,3.94678251,4003.6,4003.5,1.32034]
[1759034108159,3.72588251,4003.6,4003.5,2.73578714]
[1759034109061,3.2078,4004.1,4004.0,1.00379]
[1759034109254,3.72590577,4004.1,4004.0,1.32029]
[1759034110655,3.94680577,4004.1,4004.0,1.32029]
[1759034111860,3.72590577,4004.1,4004.0,1.32029]
[1759034113566,3.2078,4004.1,4004.0,1.32029]
[1759034114265,3.6409,4004.1,4004.0,0.871]
[1759034114467,3.9513,4004.1,4004.0,0.871]
[1759034115060,0.4493,4003.9,4003.7,0.3227]
[1759034115361,0.7435,4003.7,4003.6,0.3227]
[1759034115760,0.7435,4003.7,4003.6,0.532]
[1759034117161,0.7435,4003.7,4003.6,0.3227]
[1759034117564,0.88243,4003.6,4003.5,0.5727]
[1759034117764,1.19283,4003.6,4003.5,0.5727]
[1759034122659,1.19283,4003.6,4003.5,1.02204]
[1759034122860,1.19283,4003.6,4003.5,1.35554]
[1759034123059,1.19283,4003.6,4003.5,1.57184]
[1759034123973,0.4331,4003.6,4003.5,1.57184]
[1759034125064,0.88243,4003.6,4003.5,1.57184]
[1759034129367,1.19053,4003.6,4003.5,0.782]
[1759034129571,1.19053,4003.6,4003.5,0.5727]
[1759034129769,1.70818885,4003.6,4003.5,0.5727]
[1759034130469,1.19237,4003.3,4003.2,0.3187]
[1759034130663,1.71002885,4003.3,4003.2,0.3187]
[1759034134569,1.71002885,4003.3,4003.0,0.3187]
[1759034134570,0.743,4003.1,4003.0,0.3187]
[1759034134876,0.4349,4002.6,4002.5,1.1246]
[1759034136277,0.66032,4002.9,4002.8,0.748]
[1759034136772,0.88432,4002.9,4002.8,0.748]
[1759034137276,1.19242,4002.9,4002.8,0.748]
[1759034138980,1.19242,4002.9,4002.8,0.3187]
[1759034139668,1.19242,4002.9,4002.8,0.5325]
[1759034139876,0.66032,4002.9,4002.8,0.748]
[1759034140076,0.2109,4002.9,4002.8,1.19742]
[1759034140780,0.66031,4002.9,4002.8,2.33318093]
[1759034143986,0.66031,4002.9,4002.8,1.19742]
[1759034145275,0.44941,4002.9,4002.8,1.19742]
[1759034145480,3.6572,4003.1,4003.0,1.3325]
[1759034145682,4.17402592,4003.1,4003.0,1.3325]
[1759034145882,4.38492592,4003.1,4003.0,0.8831]
[1759034148484,4.60892592,4003.1,4003.0,0.8831]
[1759034152289,4.91702592,4003.1,4003.0,0.8831]
[1759034153688,4.91702592,4003.1,4003.0,1.3325]
[1759034154987,4.91702592,4003.1,4003.0,0.8831]
[1759034160793,1.70922592,4003.1,4003.0,0.8831]
[1759034161584,0.44941,4002.9,4002.8,0.25]
[1759034161891,0.44941,4002.9,4002.6,1.34646817]
[1759034161892,1.18782,4002.8,4002.7,0.3093]
[1759034162087,1.70464592,4002.8,4002.7,0.3093]
[1759034162591,0.87793,4002.7,4002.6,0.25]
[1759034162791,0.3099,4002.4,4002.3,1.34646817]
[1759034162997,0.44953,4001.9,4001.7,1.34646817]
[1759034163184,0.7384,4001.7,4001.6,0.90456]
[1759034163492,0.7384,4001.7,4001.6,1.12736]
[1759034163688,0.4285,4001.7,4001.6,1.43666]
[1759034164592,0.4642,4002.2,4002.1,0.4495]
[1759034164792,0.96680383,4002.4,4002.3,0.205]
[1759034164998,0.96678874,4002.4,4002.3,0.7371]
[1759034165193,1.18098874,4002.4,4002.3,0.7371]
[1759034165591,1.39528874,4002.4,4002.3,0.7371]
[1759034165893,1.70518874,4002.4,4002.3,0.7371]
[1759034166495,1.70518874,4002.4,4002.3,0.5143]